fUST/lending_fUST_20250527
["ID","MTS","AMOUNT","RATE_DAILY","PERIOD"]
[362470045,1748323838711,-430.0,0.00019926,2]
[362470046,1748323838720,-432.28143441,0.00019926,2]
[362470047,1748323838732,-158.063792,0.00019926,2]
[362470048,1748323838741,-158.063792,0.00019926,2]
[362470049,1748323838751,-151.0,0.00019926,2]
[362470050,1748323838760,-430.0,0.00019926,2]
[362470051,1748323838770,-500.0,0.00019926,2]
[362470052,1748323838779,-430.0,0.00019926,2]
[362470053,1748323838789,-430.0,0.00019926,2]
[362470055,1748323838799,-430.0,0.00019926,2]
[362470057,1748323838808,-430.0,0.00019926,2]
[362470059,1748323838818,-430.0,0.00019926,2]
[362470061,1748323838828,-430.0,0.00019926,2]
[362470063,1748323838837,-603.78,0.00019926,2]
[362470065,1748323838847,-430.0,0.00019926,2]
[362470067,1748323838856,-566.41,0.00019926,2]
[362470069,1748323838866,-435.10959686,0.00019926,2]
[362470071,1748323838877,-436.55364605,0.00019926,2]
[362470073,1748323838886,-430.0,0.00019926,2]
[362470075,1748323838896,-151.0,0.00019926,2]
[362470077,1748323838905,-430.0,0.00019926,2]
[362470079,1748323838915,-151.0,0.00019926,2]
[362470081,1748323838924,-151.0,0.00019926,2]
[362470083,1748323838934,-430.0,0.00019926,2]
[362470085,1748323838944,-553.91,0.00019926,2]
[362470088,1748323838953,-430.0,0.00019926,2]
[362470090,1748323838963,-555.59,0.00019926,2]
[362470091,1748323838973,-430.0,0.00019926,2]
[362470093,1748323838983,-151.0,0.00019926,2]
[362470096,1748323838993,-430.0,0.00019926,2]
[362470098,1748323839002,-151.0,0.00019926,2]
[362470100,1748323839012,-592.86,0.00019926,2]
[362470102,1748323839021,-430.0,0.00019926,2]
[362470104,1748323839030,-635.460429,0.00019926,2]
[362470106,1748323839039,-635.460429,0.00019926,2]
[362470108,1748323839051,-430.0,0.00019926,2]
[362470110,1748323839060,-156.739358,0.00019926,2]
[362470112,1748323839070,-430.0,0.00019926,2]
[362470114,1748323839079,-151.0,0.00019926,2]
[362470116,1748323839089,-430.0,0.00019926,2]
[362470118,1748323839099,-151.0,0.00019927,2]
[362470120,1748323839108,-1761.35,0.00019927,2]
[362470122,1748323839117,-430.0,0.00019927,2]
[362470124,1748323839126,-430.0,0.00019927,2]
[362470126,1748323839136,-151.0,0.00019927,2]
[362470128,1748323839146,-205.721328,0.00019927,2]
[362470130,1748323839156,-398.754531,0.00019927,2]
[362470132,1748323839165,-398.754531,0.00019927,2]
[362470134,1748323839176,-430.0,0.00019928,2]
[362470136,1748323839185,-430.0,0.00019928,2]
[362470138,1748323839195,-430.0,0.00019928,2]
[362470140,1748323839204,-430.0,0.00019928,2]
[362470142,1748323839214,-430.0,0.00019928,2]
[362470144,1748323839223,-161.35067,0.00019928,2]
[362470146,1748323839232,-151.0,0.00019928,2]
[362470148,1748323839241,-194.269378,0.00019928,2]
[362470150,1748323839250,-430.0,0.00019999,2]
[362470152,1748323839260,-156.517148,0.0002,2]
[362470154,1748323839270,-1615.41,0.0002,2]
[362470156,1748323839279,-430.0,0.0002,2]
[362470158,1748323839288,-430.0,0.0002,2]
[362470160,1748323839300,-430.0,0.0002,2]
[362470162,1748323839309,-994.47,0.0002,2]
[362470164,1748323839318,-430.0,0.0002,2]
[362470166,1748323839328,-2560.66,0.0002,2]
[362470168,1748323839338,-1213.58,0.0002,2]
[362470170,1748323839347,-467.8349677,0.0002,2]
[362470172,1748323839357,-430.0,0.0002,2]
[362470174,1748323839368,-430.0,0.0002,2]
[362470176,1748323839377,-430.0,0.0002,2]
[362470178,1748323839387,-12727.55974673,0.0002,2]
[362470180,1748323839396,-151.0,0.0002,2]
[362470182,1748323839406,-151.0,0.0002,2]
[362470184,1748323839415,-430.0,0.0002,2]
[362470186,1748323839424,-194.564364,0.0002,2]
[362470188,1748323839433,-430.0,0.0002,2]
[362470190,1748323839442,-430.0,0.0002,2]
[362470192,1748323839452,-430.0,0.0002,2]
[362470194,1748323839462,-430.0,0.0002,2]
[362470196,1748323839472,-151.0,0.0002,2]
[362470199,1748323839482,-430.0,0.0002,2]
[362470200,1748323839492,-430.0,0.0002,2]
[362470202,1748323839503,-430.0,0.0002,2]
[362470204,1748323839512,-151.0,0.0002,2]
[362470206,1748323839521,-430.0,0.0002,2]
[362470208,1748323839531,-635.460429,0.0002,2]
[362470211,1748323839541,-430.0,0.0002,2]
[362470212,1748323839552,-430.0,0.0002,2]
[362470215,1748323839562,-430.0,0.0002,2]
[362470217,1748323839571,-635.460429,0.0002,2]
[362470219,1748323839580,-430.0,0.0002,2]
[362470221,1748323839590,-1376.34,0.0002,2]
[362470223,1748323839599,-219.395055,0.0002,2]
[362470225,1748323839610,-430.0,0.0002,2]
[362470227,1748323839619,-420.0,0.00020131,2]
[362470229,1748323839629,-653.48332529,0.00020159,2]
[362470231,1748323839639,-500.0,0.00020167,2]
[362470233,1748323839649,-500.0,0.00020167,2]
[362470235,1748323839659,-500.0,0.00020167,2]
[362470237,1748323839668,-430.0,0.00020196,2]
[362470239,1748323839678,-430.0,0.00020196,2]
[362470241,1748323839687,-430.0,0.00020196,2]
[362470243,1748323839697,-472.40176926,0.00020196,2]
[362470245,1748323839706,-430.0,0.00020196,2]
[362470247,1748323839717,-430.0,0.00020196,2]
[362470249,1748323839727,-430.0,0.00020196,2]
[362470251,1748323839737,-430.0,0.00020196,2]
[362470253,1748323839746,-204.93947362,0.00020196,2]
[362470255,1748323839756,-440.38622252,0.00020197,2]
[362470257,1748323839765,-158.063792,0.00020197,2]
[362470259,1748323839776,-158.063792,0.00020197,2]
[362470261,1748323839786,-151.0,0.00020197,2]
[362470263,1748323839797,-430.0,0.00020197,2]
[362470265,1748323839806,-430.0,0.00020197,2]
[362470267,1748323839816,-430.0,0.00020197,2]
[362470269,1748323839825,-430.0,0.00020197,2]
[362470270,1748323839835,-430.0,0.00020197,2]
[362470271,1748323839845,-430.0,0.00020197,2]
[362470273,1748323839855,-430.0,0.00020197,2]
[362470275,1748323839865,-500.0,0.00020198,2]
[362470276,1748323839875,-160.501646,0.00020199,2]
[362470278,1748323839884,-500.0,0.00020199,2]
[362470279,1748323839894,-430.0,0.00020199,2]
[362470281,1748323839903,-430.0,0.00020199,2]
[362470282,1748323839912,-430.0,0.00020199,2]
[362470284,1748323839922,-430.0,0.00020199,2]
[362470286,1748323839932,-430.0,0.00020199,2]
[362470287,1748323839942,-430.0,0.00020199,2]
[362470289,1748323839951,-430.0,0.00020199,2]
[362470290,1748323839961,-440.72351575,0.00020199,2]
[362470292,1748323839971,-430.0,0.00020199,2]
[362470294,1748323839981,-430.0,0.00020199,2]
[362470295,1748323839991,-430.0,0.00020199,2]
[362470297,1748323840001,-430.0,0.00020199,2]
[362470298,1748323840010,-151.0,0.00020199,2]
[362470300,1748323840020,-610.92,0.00020199,2]
[362470301,1748323840029,-430.0,0.00020199,2]
[362470303,1748323840039,-430.0,0.00020199,2]
[362470304,1748323840049,-151.0,0.00020199,2]
[362470305,1748323840059,-398.754531,0.00020199,2]
[362470306,1748323840069,-398.754531,0.00020199,2]
[362470307,1748323840079,-430.0,0.00020199,2]
[362470308,1748323840090,-430.0,0.00020199,2]
[362470309,1748323840100,-280.0,0.000202,2]
[362470310,1748323840110,-453.18138622,0.000202,2]
[362470311,1748323840120,-546.7536063,0.000202,2]
[362470312,1748323840129,-151.0,0.000202,2]
[362470313,1748323840138,-433.56780728,0.000202,2]
[362470314,1748323840148,-430.0,0.000202,2]
[362470315,1748323840158,-430.0,0.000202,2]
[362470316,1748323840167,-430.0,0.000202,2]
[362470317,1748323840280,-430.0,0.000202,2]
[362470318,1748323840290,-151.0,0.000202,2]
[362470319,1748323840299,-430.0,0.000202,2]
[362470320,1748323840309,-430.0,0.000202,2]
[362470321,1748323840319,-430.0,0.000202,2]
[362470322,1748323840328,-430.0,0.000202,2]
[362470323,1748323840338,-430.0,0.000202,2]
[362470324,1748323840347,-430.0,0.000202,2]
[362470325,1748323840357,-430.0,0.000202,2]
[362470326,1748323840366,-603.78,0.000202,2]
[362470327,1748323840375,-430.0,0.000202,2]
[362470328,1748323840385,-442.02609151,0.000202,2]
[362470329,1748323840394,-430.0,0.000202,2]
[362470330,1748323840404,-430.0,0.000202,2]
[362470331,1748323840413,-553.91,0.000202,2]
[362470332,1748323840423,-430.0,0.000202,2]
[362470333,1748323840432,-555.59,0.000202,2]
[362470334,1748323840441,-430.0,0.000202,2]
[362470335,1748323840451,-430.0,0.000202,2]
[362470336,1748323840461,-592.86,0.000202,2]
[362470337,1748323840470,-430.0,0.000202,2]
[362470338,1748323840480,-430.0,0.000202,2]
[362470339,1748323840490,-1761.35,0.00020201,2]
[362470340,1748323840503,-278.81751924,0.00020201,2]
[362470341,1748323840512,-430.0,0.00020201,2]
[362470342,1748323840522,-438.87063163,0.00020201,2]
[362470343,1748323840532,-151.0,0.00020201,2]
[362470344,1748323840542,-151.0,0.00020201,2]
[362470345,1748323840552,-182.16969,0.00020201,2]
[362470346,1748323840562,-248.4702,0.00020201,2]
[362470347,1748323840572,-635.460429,0.00020201,2]
[362470348,1748323840581,-635.460429,0.00020201,2]
[362470349,1748323840591,-151.0,0.00020202,2]
[362470350,1748323840603,-430.0,0.00020202,2]
[362470351,1748323840613,-430.0,0.00020202,2]
[362470352,1748323840622,-430.0,0.00020202,2]
[362470353,1748323840632,-151.0,0.00020202,2]
[362470354,1748323840641,-430.0,0.00020202,2]
[362470355,1748323840651,-158.063792,0.00020202,2]
[362470356,1748323840660,-158.063792,0.00020202,2]
[362470357,1748323840670,-151.0,0.00020202,2]
[362470358,1748323840680,-1615.41,0.00020273,2]
[362470359,1748323840689,-430.0,0.00020273,2]
[362470360,1748323840699,-430.0,0.00020273,2]
[362470361,1748323840709,-994.47,0.00020273,2]
[362470362,1748323840719,-224.999748,0.00020273,2]
[362470363,1748323840729,-2560.66,0.00020273,2]
[362470364,1748323840740,-1213.58,0.00020273,2]
[362470365,1748323840749,-430.0,0.00020273,2]
[362470366,1748323840759,-398.754531,0.00020273,2]
[362470367,1748323840769,-398.754531,0.00020273,2]
[362470369,1748323840778,-430.0,0.00020273,2]
[362470371,1748323840788,-430.0,0.00020273,2]
[362470372,1748323840798,-430.0,0.00020273,2]
[362470374,1748323840809,-250.86299075,0.00020273,2]
[362470376,1748323840819,-430.0,0.00020273,2]
[362470377,1748323840828,-430.0,0.00020273,2]
[362470379,1748323840839,-531.35,0.00020273,2]
[362470381,1748323840848,-430.0,0.00020273,2]
[362470383,1748323840858,-430.0,0.00020273,2]
[362470384,1748323840867,-430.0,0.00020273,2]
[362470386,1748323840877,-430.0,0.00020273,2]
[362470388,1748323840886,-430.0,0.00020273,2]
[362470389,1748323840896,-430.0,0.00020273,2]
[362470390,1748323840905,-1376.34,0.00020273,2]
[362470391,1748323840915,-151.0,0.00020291,2]
[362470392,1748323840925,-151.0,0.00020292,2]
[362470394,1748323840935,-151.0,0.00020292,2]
[362470395,1748323840945,-151.0,0.00020293,2]
[362470397,1748323840954,-12656.54583329,0.00020297,2]
[362470399,1748323840964,-212.62946336,0.00020297,2]
[362470400,1748323840973,-423.16111059,0.00020297,2]
[362470401,1748323840983,-1165.76070012,0.00020305,2]
[362470402,1748323840992,-158.54448295,0.00020339,2]
[362470403,1748323841001,-500.0,0.00020345,2]
[362470404,1748323841011,-500.0,0.00020345,2]
[362470405,1748323841021,-500.0,0.00020345,2]
[362470406,1748323841031,-500.96040938,0.00020345,2]
[362470407,1748323841040,-500.0,0.00020345,2]
[362470408,1748323841050,-504.69269349,0.00020364,2]
[362470409,1748323841060,-500.0,0.00020364,2]
[362470410,1748323841069,-500.0,0.00020364,2]
[362470411,1748323841079,-314.95650198,0.00020379,2]
[362470412,1748323841089,-500.0,0.00020414,2]
[362470413,1748323841098,-500.0,0.00020414,2]
[362470414,1748323841108,-500.0,0.00020414,2]
[362470416,1748323841118,-501.24337579,0.00020445,2]
[362470418,1748323841127,-273.22725288,0.00020445,2]
[362470419,1748323841136,-500.0,0.00020445,2]
[362470421,1748323841146,-500.0,0.00020462,2]
[362470423,1748323841166,-500.40711863,0.00020462,2]
[362470426,1748323841182,-500.0,0.00020466,2]
[362470428,1748323841195,-503.02752537,0.00020466,2]
[362470431,1748323841210,-500.0,0.00020466,2]
[362470434,1748323841225,-151.0,0.00020466,2]
[362470436,1748323841239,-151.0,0.00020466,2]
[362470439,1748323841256,-635.460429,0.00020466,2]
[362470442,1748323841271,-635.460429,0.00020466,2]
[362470444,1748323841284,-430.0,0.0002047,2]
[362470446,1748323841297,-430.0,0.0002047,2]
[362470449,1748323841309,-430.0,0.0002047,2]
[362470450,1748323841322,-430.0,0.0002047,2]
[362470451,1748323841337,-430.0,0.0002047,2]
[362470452,1748323841351,-158.063792,0.00020471,2]
[362470453,1748323841366,-158.063792,0.00020471,2]
[362470454,1748323841380,-151.0,0.00020471,2]
[362470455,1748323841395,-430.0,0.00020471,2]
[362470456,1748323841407,-398.754531,0.00020471,2]
[362470457,1748323841423,-398.754531,0.00020471,2]
[362470458,1748323841439,-430.0,0.00020471,2]
[362470459,1748323841453,-430.0,0.00020471,2]
[362470460,1748323841482,-430.0,0.00020471,2]
[362470461,1748323841499,-430.0,0.00020471,2]
[362470462,1748323841519,-430.0,0.00020471,2]
[362470463,1748323841541,-500.0,0.00020473,2]
[362470464,1748323841558,-430.0,0.00020473,2]
[362470465,1748323841574,-430.0,0.00020473,2]
[362470466,1748323841587,-430.0,0.00020473,2]
[362470467,1748323841600,-430.0,0.00020473,2]
[362470468,1748323841620,-430.0,0.00020473,2]
[362470469,1748323841635,-430.0,0.00020473,2]
[362470470,1748323841646,-430.0,0.00020473,2]
[362470471,1748323841659,-151.0,0.00020473,2]
[362470472,1748323841672,-610.92,0.00020473,2]
[362470474,1748323841687,-430.0,0.00020473,2]
[362470475,1748323841699,-430.0,0.00020473,2]
[362470476,1748323841712,-430.0,0.00020473,2]
[362470479,1748323841727,-430.0,0.00020473,2]
[362470482,1748323841741,-450.0,0.00020474,2]
[362470484,1748323841755,-430.0,0.00020474,2]
[362470487,1748323841771,-166.68638067,0.00020474,2]
[362470489,1748323841786,-430.0,0.00020474,2]
[362470492,1748323841800,-430.0,0.00020474,2]
[362470494,1748323841814,-430.0,0.00020474,2]
[362470497,1748323841828,-430.0,0.00020474,2]
[362470499,1748323841842,-430.0,0.00020474,2]
[362470501,1748323841856,-430.0,0.00020474,2]
[362470504,1748323841870,-603.78,0.00020474,2]
[362470506,1748323841883,-363.77601713,0.00020474,2]
[362470509,1748323841896,-430.0,0.00020474,2]
[362470511,1748323841908,-430.0,0.00020474,2]
[362470513,1748323841922,-553.91,0.00020474,2]
[362470516,1748323841935,-430.0,0.00020474,2]
[362470518,1748323841948,-555.59,0.00020474,2]
[362470521,1748323841961,-430.0,0.00020474,2]
[362470523,1748323841975,-430.0,0.00020474,2]
[362470526,1748323841988,-592.86,0.00020474,2]
[362470528,1748323842001,-1761.35,0.00020475,2]
[362470530,1748323842015,-430.0,0.00020475,2]
[362470533,1748323842034,-188.61,0.00020475,2]
[362470536,1748323842051,-151.0,0.00020476,2]
[362470539,1748323842065,-430.0,0.00020476,2]
[362470541,1748323842079,-450.0,0.00020476,2]
[362470544,1748323842095,-430.0,0.00020476,2]
[362470546,1748323842108,-430.0,0.00020476,2]
[362470549,1748323842124,-288.476999,0.00020476,2]
[362470551,1748323842138,-156.26284273,0.000205,2]
[362470554,1748323842151,-152.91641,0.00020518,2]
[362470556,1748323842164,-158.063792,0.00020547,2]
[362470558,1748323842177,-158.063792,0.00020547,2]
[362470559,1748323842192,-151.0,0.00020547,2]
[362470560,1748323842206,-1615.41,0.00020547,2]
[362470561,1748323842219,-430.0,0.00020547,2]
[362470562,1748323842232,-430.0,0.00020547,2]
[362470563,1748323842245,-994.47,0.00020547,2]
[362470564,1748323842259,-2560.66,0.00020547,2]
[362470565,1748323842272,-1213.58,0.00020547,2]
[362470566,1748323842285,-430.0,0.00020547,2]
[362470567,1748323842299,-430.0,0.00020547,2]
[362470568,1748323842313,-430.0,0.00020547,2]
[362470569,1748323842325,-151.0,0.00020547,2]
[362470570,1748323842339,-170.246075,0.00020547,2]
[362470571,1748323842353,-430.0,0.00020547,2]
[362470572,1748323842367,-430.0,0.00020547,2]
[362470573,1748323842379,-430.0,0.00020547,2]
[362470574,1748323842389,-430.0,0.00020547,2]
[362470575,1748323842399,-635.460429,0.00020547,2]
[362470576,1748323842559,-430.0,0.00020547,2]
[362470577,1748323842581,-430.0,0.00020547,2]
[362470578,1748323842591,-430.0,0.00020547,2]
[362470579,1748323842601,-635.460429,0.00020547,2]
[362470580,1748323842611,-434.39017651,0.00020547,2]
[362470581,1748323842619,-1376.34,0.00020547,2]
[362470582,1748323842628,-151.0,0.00020552,2]
[362470583,1748323842638,-500.69573903,0.00020552,2]
[362470584,1748323842647,-500.0,0.00020552,2]
[362470585,1748323842656,-502.5115144,0.00020552,2]
[362470586,1748323842666,-503.18282827,0.00020552,2]
[362470587,1748323842675,-500.0,0.00020558,2]
[362470588,1748323842685,-500.0,0.00020558,2]
[362470589,1748323842694,-398.754531,0.00020559,2]
[362470590,1748323842704,-398.754531,0.00020559,2]
[362470591,1748323842713,-503.73908121,0.00020559,2]
[362470592,1748323842722,-500.76118284,0.00020565,2]
[362470593,1748323842732,-503.091329,0.00020715,2]
[362470594,1748323842741,-1000.0,0.00020715,2]
[362470595,1748323842750,-1000.0,0.00020715,2]
[362470596,1748323842759,-430.0,0.00020744,2]
[362470597,1748323842769,-430.0,0.00020744,2]
[362470598,1748323842778,-430.0,0.00020744,2]
[362470599,1748323842787,-430.0,0.00020744,2]
[362470600,1748323842797,-430.0,0.00020744,2]
[362470601,1748323842806,-151.0,0.00020745,2]
[362470602,1748323842816,-430.0,0.00020745,2]
[362470603,1748323842825,-430.0,0.00020745,2]
[362470604,1748323842835,-430.0,0.00020745,2]
[362470605,1748323842844,-430.0,0.00020745,2]
[362470606,1748323842854,-430.0,0.00020745,2]
[362470607,1748323842864,-500.0,0.00020747,2]
[362470608,1748323842874,-430.0,0.00020747,2]
[362470609,1748323842883,-430.0,0.00020747,2]
[362470610,1748323842893,-430.0,0.00020747,2]
[362470611,1748323842902,-430.0,0.00020747,2]
[362470612,1748323842912,-430.0,0.00020747,2]
[362470613,1748323842921,-430.0,0.00020747,2]
[362470614,1748323842931,-610.92,0.00020747,2]
[362470615,1748323842941,-203.24362011,0.00020747,2]
[362470616,1748323842951,-430.0,0.00020747,2]
[362470617,1748323842960,-430.0,0.00020747,2]
[362470618,1748323842970,-430.0,0.00020747,2]
[362470619,1748323842979,-431.94760888,0.00020748,2]
[362470621,1748323842988,-326.849475,0.00020748,2]
[362470622,1748323842999,-430.0,0.00020748,2]
[362470623,1748323843010,-430.0,0.00020748,2]
[362470624,1748323843021,-430.0,0.00020748,2]
[362470626,1748323843031,-430.0,0.00020748,2]
[362470627,1748323843041,-430.0,0.00020748,2]
[362470628,1748323843053,-603.78,0.00020748,2]
[362470629,1748323843063,-430.0,0.00020748,2]
[362470630,1748323843074,-430.0,0.00020748,2]
[362470631,1748323843084,-553.91,0.00020748,2]
[362470632,1748323843093,-430.0,0.00020748,2]
[362470633,1748323843102,-555.59,0.00020748,2]
[362470634,1748323843112,-430.0,0.00020748,2]
[362470635,1748323843124,-430.0,0.00020748,2]
[362470636,1748323843133,-592.86,0.00020748,2]
[362470638,1748323843144,-1761.35,0.00020749,2]
[362470640,1748323843153,-158.063792,0.00020749,2]
[362470642,1748323843163,-158.063792,0.00020749,2]
[362470644,1748323843172,-151.0,0.00020749,2]
[362470646,1748323843181,-430.0,0.00020749,2]
[362470648,1748323843190,-430.0,0.0002075,2]
[362470650,1748323843200,-151.0,0.0002075,2]
[362470652,1748323843209,-635.460429,0.0002075,2]
[362470654,1748323843218,-635.460429,0.0002075,2]
[362470655,1748323843227,-327.4314981,0.00020795,2]
[362470658,1748323843237,-580.1994498,0.00020795,2]
[362470660,1748323843247,-163.3368478,0.00020795,2]
[362470661,1748323843256,-308.1025348,0.00020795,2]
[362470663,1748323843265,-158.3360012,0.00020795,2]
[362470665,1748323843274,-571.8642545,0.00020795,2]
[362470666,1748323843283,-176.2895652,0.00020795,2]
[362470667,1748323843293,-571.8642545,0.00020795,2]
[362470668,1748323843302,-158.3360012,0.00020795,2]
[362470669,1748323843311,-176.2895652,0.00020795,2]
[362470670,1748323843320,-571.8642545,0.00020795,2]
[362470671,1748323843329,-158.3360012,0.00020795,2]
[362470672,1748323843338,-176.2895652,0.00020795,2]
[362470673,1748323843347,-398.754531,0.00020795,2]
[362470674,1748323843356,-398.75452353,0.00020795,2]
[362470675,1748323843365,-1615.41,0.00020821,2]
[362470676,1748323843374,-430.0,0.00020821,2]
[362470677,1748323843384,-994.47,0.00020821,2]
[362470678,1748323843393,-2560.66,0.00020821,2]
[362470679,1748323843402,-1213.58,0.00020821,2]
[362470680,1748323843411,-430.0,0.00020821,2]
[362470681,1748323843420,-422.14715006,0.00020821,2]
[362470682,1748323843430,-430.0,0.00020821,2]
[362470683,1748323843439,-430.0,0.00020821,2]
[362470684,1748323843448,-430.0,0.00020821,2]
[362470685,1748323843458,-430.0,0.00020821,2]
[362470686,1748323843467,-430.0,0.00020821,2]
[362470687,1748323843476,-430.0,0.00020821,2]
[362470688,1748323843485,-430.0,0.00020821,2]
[362470689,1748323843497,-430.0,0.00020821,2]
[362470690,1748323843507,-1376.34,0.00020821,2]
[362470691,1748323843518,-1001.84900386,0.00020893,2]
[362470692,1748323843527,-1000.0,0.00020893,2]
[362470693,1748323843536,-398.17609132,0.00020893,2]
[362470694,1748323843545,-1003.67587005,0.00020893,2]
[362470695,1748323843554,-1000.0,0.00020912,2]
[362470696,1748323843564,-1000.0,0.00020912,2]
[362470697,1748323843573,-1000.0284376,0.00020962,2]
[362470698,1748323843583,-1005.162816,0.00020962,2]
[362470699,1748323843592,-1000.0,0.00020962,2]
[362470700,1748323843601,-502.88260009,0.00020993,2]
[362470701,1748323843610,-207.4,0.00020997,2]
[362470702,1748323843620,-1680.0,0.00021,2]
[362470703,1748323843629,-505.285343,0.0002101,2]
[362470704,1748323843638,-268.433648,0.0002101,2]
[362470705,1748323843648,-505.00904438,0.00021014,2]
[362470706,1748323843657,-1000.0,0.00021014,2]
[362470707,1748323843667,-430.0,0.00021018,2]
[362470708,1748323843676,-430.0,0.00021018,2]
[362470709,1748323843686,-430.0,0.00021018,2]
[362470710,1748323843695,-430.0,0.00021018,2]
[362470711,1748323843705,-430.0,0.00021019,2]
[362470712,1748323843714,-430.0,0.00021019,2]
[362470713,1748323843724,-430.0,0.00021019,2]
[362470714,1748323843733,-430.0,0.00021019,2]
[362470715,1748323843743,-500.0,0.00021021,2]
[362470716,1748323843753,-430.0,0.00021021,2]
[362470717,1748323843763,-430.0,0.00021021,2]
[362470718,1748323843772,-160.0,0.00021021,2]
[362470719,1748323843781,-430.0,0.00021021,2]
[362470720,1748323843791,-430.0,0.00021021,2]
[362470721,1748323843800,-430.0,0.00021021,2]
[362470722,1748323843810,-610.92,0.00021021,2]
[362470723,1748323843819,-430.0,0.00021021,2]
[362470724,1748323843829,-151.0,0.00021021,2]
[362470725,1748323843838,-635.460429,0.00021021,2]
[362470726,1748323843848,-430.0,0.00021021,2]
[362470727,1748323843858,-635.460426,0.00021021,2]
[362470728,1748323843867,-430.0,0.00021021,2]
[362470729,1748323843878,-291.111573,0.00021022,2]
[362470730,1748323843888,-158.063792,0.00021022,2]
[362470731,1748323843898,-158.063796,0.00021022,2]
[362470732,1748323843908,-151.0,0.00021022,2]
[362470733,1748323843918,-430.0,0.00021022,2]
[362470734,1748323843929,-445.89410629,0.00021022,2]
[362470735,1748323843940,-430.0,0.00021022,2]
[362470736,1748323843950,-430.0,0.00021022,2]
[362470737,1748323843959,-603.78,0.00021022,2]
[362470738,1748323843969,-430.0,0.00021022,2]
[362470739,1748323843980,-430.0,0.00021022,2]
[362470740,1748323843989,-553.91,0.00021022,2]
[362470741,1748323843999,-430.0,0.00021022,2]
[362470742,1748323844008,-555.59,0.00021022,2]
[362470743,1748323844018,-592.86,0.00021022,2]
[362470744,1748323844029,-151.0,0.00021023,2]
[362470745,1748323844039,-1761.35,0.00021023,2]
[362470746,1748323844048,-430.0,0.00021023,2]
[362470747,1748323844058,-151.0,0.00021024,2]
[362470748,1748323844068,-152.935896,0.00021024,2]
[362470749,1748323844078,-155.807765,0.00021024,2]
[362470750,1748323844088,-571.69,0.00021024,2]
[362470751,1748323844098,-1165.76070012,0.00021058,2]
[362470752,1748323844109,-162.665,0.00021062,2]
[362470753,1748323844121,-1615.41,0.00021095,2]
[362470754,1748323844132,-430.0,0.00021095,2]
[362470755,1748323844143,-994.47,0.00021095,2]
[362470756,1748323844154,-2560.66,0.00021095,2]
[362470757,1748323844164,-1213.58,0.00021095,2]
[362470758,1748323844174,-430.0,0.00021095,2]
[362470759,1748323844183,-430.0,0.00021095,2]
[362470760,1748323844193,-430.0,0.00021095,2]
[362470761,1748323844203,-430.0,0.00021095,2]
[362470762,1748323844213,-430.0,0.00021095,2]
[362470763,1748323844223,-430.0,0.00021095,2]